[Event "FIDE World Rapid Chess Championship 2021"]
[White "Alonso Rosell, Alvar"]
[Black "Gukesh, D"]
[WhiteFideId "2270544"]
[BlackFideId "46616543"]
[WhiteElo "2571"]
[BlackElo "2050"]
[Result "1/2-1/2"]
[Round "06"]
[TimeControl "900+10"]
[Date "2021.12.27"]
[WhiteClock "0:00:32"]
[BlackClock "0:00:34"]

1. d4 {[%clk 0:15:00]}  Nf6 {[%clk 0:15:00]} 2. Bf4 {[%clk 0:15:00]}  d5 {[%clk 0:15:17]} 3. e3 {[%clk 0:15:26]}  Bg4 {[%clk 0:15:17]} 4. Nf3 {[%clk 0:15:26]}  e6 {[%clk 0:15:17]} 5. Nbd2 {[%clk 0:15:26]}  Bd6 {[%clk 0:15:17]} 6. Bxd6 {[%clk 0:15:26]}  Qxd6 {[%clk 0:15:17]} 7. c4 {[%clk 0:15:26]}  O-O {[%clk 0:15:18]} 8. Be2 {[%clk 0:15:36]}  Nbd7 {[%clk 0:15:12]} 9. O-O {[%clk 0:15:36]}  c5 {[%clk 0:14:36]} 10. h3 {[%clk 0:12:27]}  Bh5 {[%clk 0:12:51]} 11. dxc5 {[%clk 0:10:14]}  Nxc5 {[%clk 0:12:24]} 12. b4 {[%clk 0:07:45]}  Nce4 {[%clk 0:12:31]} 13. Nxe4 {[%clk 0:07:45]}  Nxe4 {[%clk 0:12:31]} 14. c5 {[%clk 0:07:45]}  Qe7 {[%clk 0:12:31]} 15. Qd4 {[%clk 0:07:45]}  f5 {[%clk 0:12:22]} 16. Qe5 {[%clk 0:06:14]}  g5 {[%clk 0:05:39]} 17. Rfe1 {[%clk 0:05:05]}  a5 {[%clk 0:05:30]} 18. bxa5 {[%clk 0:03:28]}  Nxc5 {[%clk 0:03:02]} 19. Nd4 {[%clk 0:03:28]}  Bxe2 {[%clk 0:02:31]} 20. Rxe2 {[%clk 0:00:45]}  Rxa5 {[%clk 0:02:31]} 21. Rc1 {[%clk 0:00:54]}  Ra6 {[%clk 0:02:31]} 22. Rec2 {[%clk 0:00:54]}  b6 {[%clk 0:02:17]} 23. Rb1 {[%clk 0:00:38]}  Qf6 {[%clk 0:01:54]} 24. Qc7 {[%clk 0:00:32]}  e5 {[%clk 0:00:34]} 25. Nc6 {[%clk 0:00:32]}  Rf7 {[%clk 0:00:34]} 26. Qc8+ {[%clk 0:00:32]}  Rf8 {[%clk 0:00:34]} 27. Qc7 {[%clk 0:00:32]}  Rf7 {[%clk 0:00:34]} 28. Qc8+ {[%clk 0:00:32]}  Rf8 {[%clk 0:00:34]} 1/2-1/2


[Site "http://www.Chess.com"]

[Event "FIDE World Rapid Chess Championship 2021"]
[White "Jumabayev, Rinat"]
[Black "Samunenkov, Ihor"]
[WhiteFideId "13702661"]
[BlackFideId "14187086"]
[WhiteElo "2562"]
[BlackElo "2259"]
[Result "1/2-1/2"]
[Round "06"]
[TimeControl "900+10"]
[Date "2021.12.27"]
[WhiteClock "0:00:36"]
[BlackClock "0:00:18"]

1. d4 {[%clk 0:15:00]}  d5 {[%clk 0:15:00]} 2. c4 {[%clk 0:15:00]}  e6 {[%clk 0:15:00]} 3. Nf3 {[%clk 0:15:00]}  Nf6 {[%clk 0:15:34]} 4. g3 {[%clk 0:15:43]}  Be7 {[%clk 0:15:34]} 5. Bg2 {[%clk 0:15:43]}  O-O {[%clk 0:15:34]} 6. O-O {[%clk 0:15:43]}  c6 {[%clk 0:15:34]} 7. Nbd2 {[%clk 0:15:43]}  b6 {[%clk 0:15:34]} 8. Qc2 {[%clk 0:15:43]}  Bb7 {[%clk 0:15:34]} 9. e4 {[%clk 0:15:59]}  Na6 {[%clk 0:15:32]} 10. a3 {[%clk 0:15:59]}  c5 {[%clk 0:15:32]} 11. exd5 {[%clk 0:15:59]}  exd5 {[%clk 0:15:32]} 12. Rd1 {[%clk 0:15:18]}  Rc8 {[%clk 0:15:54]} 13. dxc5 {[%clk 0:14:35]}  Nxc5 {[%clk 0:13:06]} 14. Nh4 {[%clk 0:13:47]}  Qc7 {[%clk 0:13:06]} 15. Nf5 {[%clk 0:12:47]}  dxc4 {[%clk 0:07:34]} 16. Bxb7 {[%clk 0:11:05]}  Qxb7 {[%clk 0:07:34]} 17. Nxc4 {[%clk 0:11:05]}  Nce4 {[%clk 0:06:02]} 18. Be3 {[%clk 0:10:11]}  Bc5 {[%clk 0:06:02]} 19. Qd3 {[%clk 0:09:49]}  Bxe3 {[%clk 0:05:31]} 20. Ncxe3 {[%clk 0:07:29]}  g6 {[%clk 0:04:55]} 21. Nd6 {[%clk 0:07:35]}  Nxd6 {[%clk 0:03:28]} 22. Qxd6 {[%clk 0:07:35]}  Qf3 {[%clk 0:03:28]} 23. Qd4 {[%clk 0:06:21]}  Rfe8 {[%clk 0:03:19]} 24. Rac1 {[%clk 0:03:53]}  Rxc1 {[%clk 0:02:09]} 25. Rxc1 {[%clk 0:03:53]}  h5 {[%clk 0:01:48]} 26. Qf4 {[%clk 0:02:13]}  Qxf4 {[%clk 0:01:12]} 27. gxf4 {[%clk 0:01:02]}  Ng4 {[%clk 0:01:12]} 28. Rc3 {[%clk 0:01:02]}  Rd8 {[%clk 0:01:12]} 29. Nxg4 {[%clk 0:00:36]}  hxg4 {[%clk 0:00:39]} 30. Rc7 {[%clk 0:00:36]}  Rd2 {[%clk 0:00:39]} 31. b4 {[%clk 0:00:36]}  a5 {[%clk 0:00:39]} 32. bxa5 {[%clk 0:00:36]}  bxa5 {[%clk 0:00:39]} 33. Rc5 {[%clk 0:00:36]}  Rd4 {[%clk 0:00:18]} 1/2-1/2


[Site "http://www.Chess.com"]

[Event "FIDE World Rapid Chess Championship 2021"]
[White "Petrovskyi, Vadym"]
[Black "Socko, Bartosz"]
[WhiteFideId "14165210"]
[BlackFideId "1107038"]
[WhiteElo "2282"]
[BlackElo "2562"]
[Result "0-1"]
[Round "06"]
[TimeControl "900+10"]
[Date "2021.12.27"]
[WhiteClock "0:00:24"]
[BlackClock "0:01:25"]

1. e4 {[%clk 0:15:00]}  c6 {[%clk 0:15:00]} 2. d4 {[%clk 0:15:00]}  d5 {[%clk 0:15:00]} 3. Nc3 {[%clk 0:15:43]}  dxe4 {[%clk 0:15:43]} 4. Nxe4 {[%clk 0:15:43]}  Bf5 {[%clk 0:15:43]} 5. Ng3 {[%clk 0:15:43]}  Bg6 {[%clk 0:15:43]} 6. h4 {[%clk 0:15:43]}  h6 {[%clk 0:15:43]} 7. Nf3 {[%clk 0:15:43]}  e6 {[%clk 0:15:43]} 8. h5 {[%clk 0:15:43]}  Bh7 {[%clk 0:15:43]} 9. Bd3 {[%clk 0:15:43]}  Bxd3 {[%clk 0:15:43]} 10. Qxd3 {[%clk 0:15:43]}  Nf6 {[%clk 0:15:43]} 11. Bd2 {[%clk 0:15:43]}  Be7 {[%clk 0:15:43]} 12. O-O-O {[%clk 0:15:43]}  O-O {[%clk 0:15:43]} 13. Qe2 {[%clk 0:15:43]}  Nbd7 {[%clk 0:16:50]} 14. Ne5 {[%clk 0:16:21]}  c5 {[%clk 0:16:50]} 15. dxc5 {[%clk 0:16:17]}  Qc7 {[%clk 0:15:49]} 16. Nxd7 {[%clk 0:14:53]}  Nxd7 {[%clk 0:14:33]} 17. Bc3 {[%clk 0:13:07]}  Nxc5 {[%clk 0:14:41]} 18. Kb1 {[%clk 0:10:16]}  Rfd8 {[%clk 0:13:16]} 19. Be5 {[%clk 0:08:55]}  Qc6 {[%clk 0:12:41]} 20. Qg4 {[%clk 0:07:30]}  Bf8 {[%clk 0:12:50]} 21. f3 {[%clk 0:07:30]}  Rac8 {[%clk 0:12:57]} 22. Qc4 {[%clk 0:05:03]}  b5 {[%clk 0:11:15]} 23. Qe2 {[%clk 0:05:03]}  a5 {[%clk 0:11:08]} 24. Ne4 {[%clk 0:04:58]}  a4 {[%clk 0:08:15]} 25. g4 {[%clk 0:04:17]}  Nxe4 {[%clk 0:08:15]} 26. Qxe4 {[%clk 0:04:17]}  Qxe4 {[%clk 0:07:41]} 27. fxe4 {[%clk 0:03:55]}  f6 {[%clk 0:07:41]} 28. Bg3 {[%clk 0:03:55]}  a3 {[%clk 0:06:57]} 29. b3 {[%clk 0:03:52]}  Bb4 {[%clk 0:06:57]} 30. Bf2 {[%clk 0:03:52]}  Bc3 {[%clk 0:06:44]} 31. Bb6 {[%clk 0:03:34]}  Rxd1+ {[%clk 0:06:44]} 32. Rxd1 {[%clk 0:03:34]}  Kh7 {[%clk 0:04:23]} 33. Rd7 {[%clk 0:03:48]}  f5 {[%clk 0:02:41]} 34. gxf5 {[%clk 0:03:47]}  exf5 {[%clk 0:02:41]} 35. exf5 {[%clk 0:03:47]}  Re8 {[%clk 0:02:41]} 36. Kc1 {[%clk 0:02:55]}  Re2 {[%clk 0:02:04]} 37. Rd1 {[%clk 0:02:23]}  Rh2 {[%clk 0:02:04]} 38. Bd4 {[%clk 0:02:23]}  b4 {[%clk 0:01:24]} 39. Bxc3 {[%clk 0:02:19]}  bxc3 {[%clk 0:01:24]} 40. Rf1 {[%clk 0:01:41]}  Rxh5 {[%clk 0:00:50]} 41. Kd1 {[%clk 0:01:41]}  Rh2 {[%clk 0:00:50]} 42. Rf3 {[%clk 0:01:41]}  Rh1+ {[%clk 0:01:03]} 43. Ke2 {[%clk 0:01:10]}  Ra1 {[%clk 0:01:03]} 44. Rxc3 {[%clk 0:01:10]}  Rxa2 {[%clk 0:01:03]} 45. Rc7 {[%clk 0:01:10]}  Kg8 {[%clk 0:01:03]} 46. Kd2 {[%clk 0:01:10]}  h5 {[%clk 0:01:03]} 47. Kc3 {[%clk 0:01:10]}  Ra1 {[%clk 0:01:13]} 48. Ra7 {[%clk 0:00:40]}  h4 {[%clk 0:01:13]} 49. f6 {[%clk 0:00:40]}  gxf6 {[%clk 0:01:25]} 50. Ra4 {[%clk 0:00:24]}  h3 {[%clk 0:01:25]} 51. Rh4 {[%clk 0:00:24]}  Rg1 {[%clk 0:01:25]} 52. Kd4 {[%clk 0:00:24]} 0-1


[Site "http://www.Chess.com"]

[Event "FIDE World Rapid Chess Championship 2021"]
[White "Dudin, Gleb"]
[Black "Theodorou, Nikolas"]
[WhiteFideId "34184934"]
[BlackFideId "4262875"]
[WhiteElo "2247"]
[BlackElo "2559"]
[Result "1/2-1/2"]
[Round "06"]
[TimeControl "900+10"]
[Date "2021.12.27"]
[WhiteClock "0:00:22"]
[BlackClock "0:00:10"]

1. d4 {[%clk 0:15:00]}  Nf6 {[%clk 0:15:00]} 2. c4 {[%clk 0:15:00]}  g6 {[%clk 0:15:00]} 3. Nc3 {[%clk 0:15:00]}  Bg7 {[%clk 0:15:00]} 4. e4 {[%clk 0:15:00]}  d6 {[%clk 0:15:00]} 5. Be2 {[%clk 0:15:00]}  O-O {[%clk 0:15:00]} 6. Be3 {[%clk 0:15:00]}  Nc6 {[%clk 0:15:00]} 7. d5 {[%clk 0:15:00]}  Ne5 {[%clk 0:15:00]} 8. Rc1 {[%clk 0:15:00]}  Nfg4 {[%clk 0:15:32]} 9. Bd2 {[%clk 0:15:49]}  f5 {[%clk 0:13:39]} 10. exf5 {[%clk 0:13:38]}  gxf5 {[%clk 0:13:29]} 11. Nh3 {[%clk 0:10:45]}  e6 {[%clk 0:13:29]} 12. O-O {[%clk 0:10:32]}  Ng6 {[%clk 0:07:08]} 13. dxe6 {[%clk 0:06:13]}  Bxe6 {[%clk 0:05:09]} 14. Nf4 {[%clk 0:02:42]}  Be5 {[%clk 0:05:12]} 15. Nxe6 {[%clk 0:00:14]}  Bxh2+ {[%clk 0:01:57]} 16. Kh1 {[%clk 0:00:14]}  Qh4 {[%clk 0:01:57]} 17. Bxg4 {[%clk 0:00:22]}  fxg4 {[%clk 0:01:57]} 18. Ng5 {[%clk 0:00:22]}  Be5+ {[%clk 0:02:06]} 19. Nh3 {[%clk 0:00:14]}  gxh3 {[%clk 0:02:06]} 20. g3 {[%clk 0:00:14]}  Qxc4 {[%clk 0:02:06]} 21. Kh2 {[%clk 0:00:14]}  Rf7 {[%clk 0:00:53]} 22. f4 {[%clk 0:00:33]}  Bg7 {[%clk 0:00:53]} 23. Qh5 {[%clk 0:00:33]}  Qd3 {[%clk 0:00:58]} 24. Rf2 {[%clk 0:00:14]}  Re8 {[%clk 0:00:58]} 25. Rcf1 {[%clk 0:00:14]}  Bd4 {[%clk 0:00:58]} 26. Qd5 {[%clk 0:00:14]}  c6 {[%clk 0:00:58]} 27. Qxd6 {[%clk 0:00:14]}  Rf6 {[%clk 0:00:58]} 28. Qd7 {[%clk 0:00:12]}  Re7 {[%clk 0:00:33]} 29. Qd8+ {[%clk 0:00:12]}  Rf8 {[%clk 0:00:33]} 30. Qd6 {[%clk 0:00:12]}  Rf6 {[%clk 0:00:33]} 31. Qd8+ {[%clk 0:00:12]}  Kf7 {[%clk 0:00:33]} 32. Bc1 {[%clk 0:00:30]}  Re8 {[%clk 0:00:14]} 33. Qd7+ {[%clk 0:00:30]}  Re7 {[%clk 0:00:14]} 34. Qd8 {[%clk 0:00:30]}  Qc4 {[%clk 0:00:14]} 35. Rf3 {[%clk 0:00:30]}  Bxc3 {[%clk 0:00:14]} 36. bxc3 {[%clk 0:00:30]}  Qxa2+ {[%clk 0:00:14]} 37. R1f2 {[%clk 0:00:24]}  Re2 {[%clk 0:00:36]} 38. Be3 {[%clk 0:00:24]}  Rxf2+ {[%clk 0:00:36]} 39. Rxf2 {[%clk 0:00:24]}  Qe6 {[%clk 0:00:36]} 40. Bd4 {[%clk 0:00:24]}  Rf5 {[%clk 0:00:36]} 41. Bxa7 {[%clk 0:00:24]}  Rd5 {[%clk 0:00:24]} 42. Qc7+ {[%clk 0:00:24]}  Qd7 {[%clk 0:00:24]} 43. Qxd7+ {[%clk 0:00:24]}  Rxd7 {[%clk 0:00:24]} 44. Bd4 {[%clk 0:00:24]}  Ne7 {[%clk 0:00:24]} 45. g4 {[%clk 0:00:20]}  h5 {[%clk 0:00:16]} 46. Kxh3 {[%clk 0:00:20]}  hxg4+ {[%clk 0:00:16]} 47. Kxg4 {[%clk 0:00:20]}  Rd5 {[%clk 0:00:16]} 48. Rh2 {[%clk 0:00:20]}  Nf5 {[%clk 0:00:16]} 49. Rh7+ {[%clk 0:00:20]}  Kg6 {[%clk 0:00:10]} 50. Rxb7 {[%clk 0:00:22]}  Nxd4 {[%clk 0:00:10]} 51. cxd4 {[%clk 0:00:22]}  Rxd4 {[%clk 0:00:10]} 1/2-1/2


[Site "http://www.Chess.com"]

[Event "FIDE World Rapid Chess Championship 2021"]
[White "Zvjaginsev, Vadim"]
[Black "Salem, A.R. Saleh"]
[WhiteFideId "4113403"]
[BlackFideId "9301348"]
[WhiteElo "2539"]
[BlackElo "2729"]
[Result "0-1"]
[Round "06"]
[TimeControl "900+10"]
[Date "2021.12.27"]
[WhiteClock "0:01:20"]
[BlackClock "0:00:35"]

1. e4 {[%clk 0:15:00]}  c5 {[%clk 0:15:00]} 2. d3 {[%clk 0:15:00]}  Nc6 {[%clk 0:15:24]} 3. f4 {[%clk 0:15:23]}  g6 {[%clk 0:15:24]} 4. Nf3 {[%clk 0:15:23]}  Bg7 {[%clk 0:15:24]} 5. Be2 {[%clk 0:15:23]}  d6 {[%clk 0:15:24]} 6. O-O {[%clk 0:15:23]}  Nh6 {[%clk 0:15:37]} 7. c3 {[%clk 0:15:47]}  O-O {[%clk 0:14:25]} 8. h3 {[%clk 0:15:23]}  f5 {[%clk 0:13:23]} 9. Be3 {[%clk 0:15:18]}  Nf7 {[%clk 0:13:23]} 10. Na3 {[%clk 0:15:04]}  b6 {[%clk 0:12:19]} 11. exf5 {[%clk 0:13:47]}  gxf5 {[%clk 0:12:19]} 12. d4 {[%clk 0:13:20]}  e6 {[%clk 0:08:36]} 13. Re1 {[%clk 0:13:22]}  Ne7 {[%clk 0:08:17]} 14. c4 {[%clk 0:11:18]}  Bb7 {[%clk 0:08:15]} 15. Qd2 {[%clk 0:10:53]}  a6 {[%clk 0:07:27]} 16. Rad1 {[%clk 0:10:32]}  Qc7 {[%clk 0:06:51]} 17. Bf2 {[%clk 0:10:32]}  Rfe8 {[%clk 0:06:51]} 18. Nb1 {[%clk 0:09:55]}  Ng6 {[%clk 0:05:37]} 19. Nc3 {[%clk 0:09:55]}  Rad8 {[%clk 0:05:37]} 20. h4 {[%clk 0:08:29]}  e5 {[%clk 0:05:51]} 21. Nd5 {[%clk 0:07:20]}  Bxd5 {[%clk 0:05:11]} 22. cxd5 {[%clk 0:07:20]}  e4 {[%clk 0:05:16]} 23. h5 {[%clk 0:05:39]}  exf3 {[%clk 0:03:34]} 24. hxg6 {[%clk 0:04:52]}  fxe2 {[%clk 0:03:34]} 25. gxf7+ {[%clk 0:04:52]}  Qxf7 {[%clk 0:03:34]} 26. Rxe2 {[%clk 0:04:52]}  Re4 {[%clk 0:02:14]} 27. dxc5 {[%clk 0:05:14]}  bxc5 {[%clk 0:01:20]} 28. Rxe4 {[%clk 0:05:14]}  fxe4 {[%clk 0:01:20]} 29. Be3 {[%clk 0:05:14]}  Re8 {[%clk 0:01:19]} 30. b3 {[%clk 0:03:58]}  h5 {[%clk 0:01:19]} 31. Qf2 {[%clk 0:03:38]}  Qf5 {[%clk 0:01:14]} 32. Qg3 {[%clk 0:02:33]}  Kh7 {[%clk 0:01:20]} 33. Qg5 {[%clk 0:02:33]}  Qxg5 {[%clk 0:01:20]} 34. fxg5 {[%clk 0:02:33]}  Kg6 {[%clk 0:01:20]} 35. Kf2 {[%clk 0:02:33]}  a5 {[%clk 0:00:53]} 36. Bf4 {[%clk 0:01:38]}  Be5 {[%clk 0:00:53]} 37. Ke3 {[%clk 0:01:38]}  Bxf4+ {[%clk 0:00:53]} 38. Kxf4 {[%clk 0:01:20]}  e3 {[%clk 0:00:35]} 39. Re1 {[%clk 0:01:20]}  e2 {[%clk 0:00:35]} 0-1


[Site "http://www.Chess.com"]

[Event "FIDE World Rapid Chess Championship 2021"]
[White "Mastrovasilis, Dimitrios"]
[Black "Sargissian, Gabriel"]
[WhiteFideId "4202694"]
[BlackFideId "13300881"]
[WhiteElo "2534"]
[BlackElo "2693"]
[Result "1/2-1/2"]
[Round "06"]
[TimeControl "900+10"]
[Date "2021.12.27"]
[WhiteClock "0:00:18"]
[BlackClock "0:00:45"]

1. e4 {[%clk 0:15:00]}  e5 {[%clk 0:15:00]} 2. Nf3 {[%clk 0:15:23]}  Nc6 {[%clk 0:15:25]} 3. Nc3 {[%clk 0:15:23]}  Nf6 {[%clk 0:15:25]} 4. d4 {[%clk 0:15:23]}  exd4 {[%clk 0:15:25]} 5. Nxd4 {[%clk 0:15:23]}  Bb4 {[%clk 0:15:25]} 6. Nxc6 {[%clk 0:15:23]}  bxc6 {[%clk 0:15:25]} 7. Bd3 {[%clk 0:15:23]}  d5 {[%clk 0:15:25]} 8. exd5 {[%clk 0:15:23]}  O-O {[%clk 0:15:25]} 9. O-O {[%clk 0:15:23]}  cxd5 {[%clk 0:15:25]} 10. h3 {[%clk 0:15:23]}  c6 {[%clk 0:15:25]} 11. Qf3 {[%clk 0:15:23]}  Bd6 {[%clk 0:15:55]} 12. Bg5 {[%clk 0:16:12]}  h6 {[%clk 0:15:55]} 13. Bxf6 {[%clk 0:16:15]}  Qxf6 {[%clk 0:15:07]} 14. Qxf6 {[%clk 0:16:15]}  gxf6 {[%clk 0:15:07]} 15. Ne2 {[%clk 0:16:15]}  Be5 {[%clk 0:15:23]} 16. Rab1 {[%clk 0:15:10]}  c5 {[%clk 0:15:23]} 17. b3 {[%clk 0:14:43]}  Be6 {[%clk 0:13:32]} 18. f4 {[%clk 0:14:43]}  Bc7 {[%clk 0:13:31]} 19. Ng3 {[%clk 0:13:42]}  c4 {[%clk 0:12:33]} 20. Bf5 {[%clk 0:13:42]}  Rfe8 {[%clk 0:12:29]} 21. bxc4 {[%clk 0:11:01]}  dxc4 {[%clk 0:11:51]} 22. Bxe6 {[%clk 0:11:01]}  Rxe6 {[%clk 0:11:49]} 23. Rb7 {[%clk 0:09:48]}  Bb6+ {[%clk 0:10:43]} 24. Kh2 {[%clk 0:09:42]}  Rc6 {[%clk 0:10:43]} 25. Nf5 {[%clk 0:09:44]}  Rc7 {[%clk 0:05:56]} 26. Nxh6+ {[%clk 0:07:31]}  Kf8 {[%clk 0:06:04]} 27. Rxc7 {[%clk 0:07:31]}  Bxc7 {[%clk 0:06:04]} 28. Nf5 {[%clk 0:04:23]}  Rd8 {[%clk 0:06:21]} 29. Kg3 {[%clk 0:04:23]}  Rd5 {[%clk 0:05:35]} 30. Kg4 {[%clk 0:04:21]}  Rd2 {[%clk 0:05:02]} 31. g3 {[%clk 0:04:21]}  Rxc2 {[%clk 0:05:02]} 32. Ne3 {[%clk 0:02:44]}  Rxa2 {[%clk 0:05:13]} 33. Nxc4 {[%clk 0:02:44]}  Re2 {[%clk 0:05:14]} 34. Ra1 {[%clk 0:02:13]}  a5 {[%clk 0:05:14]} 35. Nxa5 {[%clk 0:01:31]}  Bxa5 {[%clk 0:01:20]} 36. Rxa5 {[%clk 0:01:31]}  Kg7 {[%clk 0:01:20]} 37. h4 {[%clk 0:01:31]}  Re3 {[%clk 0:01:33]} 38. h5 {[%clk 0:00:38]}  Rb3 {[%clk 0:01:33]} 39. Rc5 {[%clk 0:00:38]}  Ra3 {[%clk 0:01:33]} 40. Rb5 {[%clk 0:00:38]}  Rc3 {[%clk 0:01:33]} 41. Kh4 {[%clk 0:00:38]}  Ra3 {[%clk 0:01:33]} 42. Rb6 {[%clk 0:00:25]}  Ra5 {[%clk 0:01:47]} 43. Kg4 {[%clk 0:00:25]}  Rc5 {[%clk 0:01:47]} 44. Ra6 {[%clk 0:00:25]}  Rb5 {[%clk 0:01:47]} 45. Rc6 {[%clk 0:00:25]}  Ra5 {[%clk 0:01:47]} 46. h6+ {[%clk 0:00:14]}  Kxh6 {[%clk 0:01:47]} 47. Rxf6+ {[%clk 0:00:14]}  Kg7 {[%clk 0:01:47]} 48. Rb6 {[%clk 0:00:14]}  Rc5 {[%clk 0:01:47]} 49. Ra6 {[%clk 0:00:14]}  Rb5 {[%clk 0:01:47]} 50. Kh4 {[%clk 0:00:14]}  f6 {[%clk 0:01:52]} 51. g4 {[%clk 0:00:16]}  Rc5 {[%clk 0:00:30]} 52. Ra7+ {[%clk 0:00:16]}  Kh6 {[%clk 0:00:30]} 53. Ra3 {[%clk 0:00:16]}  Kg6 {[%clk 0:00:30]} 54. Kg3 {[%clk 0:00:16]}  Rc6 {[%clk 0:00:30]} 55. Kf3 {[%clk 0:00:16]}  Rb6 {[%clk 0:00:30]} 56. Rd3 {[%clk 0:00:16]}  Ra6 {[%clk 0:00:30]} 57. Rd8 {[%clk 0:00:16]}  Ra4 {[%clk 0:00:42]} 58. Ke3 {[%clk 0:00:16]}  Ra3+ {[%clk 0:00:42]} 59. Rd3 {[%clk 0:00:16]}  Ra4 {[%clk 0:00:42]} 60. Rd6 {[%clk 0:00:16]}  Ra3+ {[%clk 0:00:42]} 61. Ke4 {[%clk 0:00:16]}  Ra4+ {[%clk 0:00:42]} 62. Rd4 {[%clk 0:00:16]}  Ra5 {[%clk 0:00:42]} 63. Rc4 {[%clk 0:00:40]}  Rb5 {[%clk 0:00:56]} 64. Ra4 {[%clk 0:00:40]}  f5+ {[%clk 0:00:56]} 65. gxf5+ {[%clk 0:00:40]}  Rxf5 {[%clk 0:00:56]} 66. Ra6+ {[%clk 0:00:40]}  Rf6 {[%clk 0:00:56]} 67. f5+ {[%clk 0:00:18]}  Kf7 {[%clk 0:00:45]} 68. Re6 {[%clk 0:00:18]}  Rxe6+ {[%clk 0:00:45]} 69. fxe6+ {[%clk 0:00:18]}  Kxe6 {[%clk 0:00:45]} 1/2-1/2


[Site "http://www.Chess.com"]

[Event "FIDE World Rapid Chess Championship 2021"]
[White "Durarbayli, Vasif"]
[Black "Kovalev, Vladislav"]
[WhiteFideId "13402935"]
[BlackFideId "13504398"]
[WhiteElo "2532"]
[BlackElo "2647"]
[Result "1-0"]
[Round "06"]
[TimeControl "900+10"]
[Date "2021.12.27"]
[WhiteClock "0:00:17"]
[BlackClock "0:01:02"]

1. e4 {[%clk 0:15:00]}  e5 {[%clk 0:15:19]} 2. Nc3 {[%clk 0:15:23]}  Nc6 {[%clk 0:15:19]} 3. Bc4 {[%clk 0:15:23]}  Nf6 {[%clk 0:15:19]} 4. d3 {[%clk 0:15:23]}  Na5 {[%clk 0:15:19]} 5. Nge2 {[%clk 0:15:23]}  Nxc4 {[%clk 0:15:19]} 6. dxc4 {[%clk 0:15:23]}  d6 {[%clk 0:15:19]} 7. b3 {[%clk 0:16:00]}  Be7 {[%clk 0:14:44]} 8. h3 {[%clk 0:16:00]}  O-O {[%clk 0:14:44]} 9. Qd3 {[%clk 0:16:00]}  Nd7 {[%clk 0:13:46]} 10. Be3 {[%clk 0:16:16]}  Nc5 {[%clk 0:13:26]} 11. Qd2 {[%clk 0:16:16]}  f5 {[%clk 0:13:26]} 12. exf5 {[%clk 0:12:47]}  Bxf5 {[%clk 0:09:06]} 13. Ng3 {[%clk 0:12:47]}  Bg6 {[%clk 0:09:06]} 14. Bxc5 {[%clk 0:12:28]}  dxc5 {[%clk 0:08:56]} 15. Rd1 {[%clk 0:06:12]}  Qxd2+ {[%clk 0:09:04]} 16. Rxd2 {[%clk 0:05:52]}  Rad8 {[%clk 0:09:04]} 17. Rxd8 {[%clk 0:05:52]}  Rxd8 {[%clk 0:09:04]} 18. Nge4 {[%clk 0:05:52]}  Rd4 {[%clk 0:04:37]} 19. f3 {[%clk 0:05:40]}  c6 {[%clk 0:04:37]} 20. Ke2 {[%clk 0:05:40]}  Kf7 {[%clk 0:04:37]} 21. a4 {[%clk 0:05:03]}  Bd8 {[%clk 0:03:43]} 22. Rd1 {[%clk 0:03:26]}  Ba5 {[%clk 0:03:43]} 23. Rxd4 {[%clk 0:03:26]}  exd4 {[%clk 0:03:26]} 24. Nd6+ {[%clk 0:01:16]}  Ke6 {[%clk 0:01:43]} 25. Nce4 {[%clk 0:01:16]}  b6 {[%clk 0:00:54]} 26. f4 {[%clk 0:01:31]}  h6 {[%clk 0:00:54]} 27. g4 {[%clk 0:00:06]}  Bh7 {[%clk 0:00:54]} 28. Kf3 {[%clk 0:00:06]}  Be1 {[%clk 0:00:54]} 29. f5+ {[%clk 0:00:06]}  Ke7 {[%clk 0:00:28]} 30. Kf4 {[%clk 0:00:14]}  Bh4 {[%clk 0:00:28]} 31. a5 {[%clk 0:00:14]}  Kd7 {[%clk 0:00:28]} 32. Nf7 {[%clk 0:00:14]}  Bd8 {[%clk 0:00:28]} 33. Ne5+ {[%clk 0:00:14]}  Kc7 {[%clk 0:00:17]} 34. axb6+ {[%clk 0:00:12]}  axb6 {[%clk 0:00:17]} 35. Kg3 {[%clk 0:00:12]}  Bg8 {[%clk 0:00:17]} 36. h4 {[%clk 0:00:12]}  b5 {[%clk 0:00:17]} 37. cxb5 {[%clk 0:00:12]}  cxb5 {[%clk 0:00:17]} 38. Nxc5 {[%clk 0:00:17]}  Kd6 {[%clk 0:00:35]} 39. Ncd3 {[%clk 0:00:17]}  Kd5 {[%clk 0:00:35]} 40. Nf3 {[%clk 0:00:17]}  Bc7+ {[%clk 0:00:35]} 41. Kf2 {[%clk 0:00:17]}  Bd6 {[%clk 0:00:35]} 42. Nd2 {[%clk 0:00:17]}  Bf7 {[%clk 0:00:35]} 43. Kf3 {[%clk 0:00:07]}  Be7 {[%clk 0:00:32]} 44. h5 {[%clk 0:00:07]}  Be8 {[%clk 0:00:32]} 45. Ne4 {[%clk 0:00:07]}  Bf8 {[%clk 0:00:32]} 46. Nf4+ {[%clk 0:00:30]}  Kc6 {[%clk 0:00:23]} 47. Ne6 {[%clk 0:00:30]}  Be7 {[%clk 0:00:23]} 48. Nxg7 {[%clk 0:00:30]}  Bf7 {[%clk 0:00:23]} 49. Ne6 {[%clk 0:00:30]}  Kd5 {[%clk 0:00:23]} 50. Nf4+ {[%clk 0:00:30]}  Kc6 {[%clk 0:00:23]} 51. Ng6 {[%clk 0:00:30]}  Bd6 {[%clk 0:00:23]} 52. Nxd6 {[%clk 0:00:17]}  Kxd6 {[%clk 0:01:02]} 53. Ke4 {[%clk 0:00:17]}  Kc5 {[%clk 0:01:02]} 54. Ne5 {[%clk 0:00:17]}  Bd5+ {[%clk 0:01:02]} 55. Kd3 {[%clk 0:00:17]}  Bg2 {[%clk 0:01:02]} 56. f6 {[%clk 0:00:17]}  Kd5 {[%clk 0:01:02]} 1-0


[Site "http://www.Chess.com"]

[Event "FIDE World Rapid Chess Championship 2021"]
[White "Kantor, Gergely"]
[Black "Antipov, Mikhail Al."]
[WhiteFideId "751499"]
[BlackFideId "4107012"]
[WhiteElo "2454"]
[BlackElo "2644"]
[Result "1/2-1/2"]
[Round "06"]
[TimeControl "900+10"]
[Date "2021.12.27"]
[WhiteClock "0:00:46"]
[BlackClock "0:00:16"]

1. d4 {[%clk 0:15:00]}  Nf6 {[%clk 0:15:00]} 2. c4 {[%clk 0:15:00]}  g6 {[%clk 0:15:00]} 3. Nc3 {[%clk 0:15:00]}  d5 {[%clk 0:15:00]} 4. cxd5 {[%clk 0:15:00]}  Nxd5 {[%clk 0:15:00]} 5. e4 {[%clk 0:15:00]}  Nxc3 {[%clk 0:15:00]} 6. bxc3 {[%clk 0:15:00]}  Bg7 {[%clk 0:15:00]} 7. Be3 {[%clk 0:15:00]}  c5 {[%clk 0:15:00]} 8. Rc1 {[%clk 0:15:00]}  Qa5 {[%clk 0:15:00]} 9. Qd2 {[%clk 0:15:00]}  cxd4 {[%clk 0:16:06]} 10. cxd4 {[%clk 0:16:01]}  Qxd2+ {[%clk 0:16:06]} 11. Bxd2 {[%clk 0:16:01]}  O-O {[%clk 0:14:31]} 12. Nf3 {[%clk 0:16:26]}  Bg4 {[%clk 0:14:31]} 13. Be3 {[%clk 0:16:26]}  Rd8 {[%clk 0:12:52]} 14. Bb5 {[%clk 0:16:33]}  Bxf3 {[%clk 0:10:04]} 15. gxf3 {[%clk 0:14:02]}  Nc6 {[%clk 0:07:27]} 16. Bxc6 {[%clk 0:13:41]}  bxc6 {[%clk 0:07:36]} 17. e5 {[%clk 0:11:43]}  Rab8 {[%clk 0:07:44]} 18. O-O {[%clk 0:09:11]}  f6 {[%clk 0:06:37]} 19. f4 {[%clk 0:08:29]}  Rb2 {[%clk 0:01:13]} 20. a4 {[%clk 0:07:12]}  Ra2 {[%clk 0:01:03]} 21. Rxc6 {[%clk 0:05:21]}  Rxa4 {[%clk 0:01:06]} 22. Rb1 {[%clk 0:05:21]}  g5 {[%clk 0:01:14]} 23. fxg5 {[%clk 0:03:31]}  fxe5 {[%clk 0:01:14]} 24. dxe5 {[%clk 0:03:03]}  Bxe5 {[%clk 0:00:52]} 25. Rb7 {[%clk 0:03:03]}  Rd6 {[%clk 0:00:52]} 26. Rxd6 {[%clk 0:03:03]}  Bxd6 {[%clk 0:00:13]} 27. Rxa7 {[%clk 0:03:03]}  Rxa7 {[%clk 0:00:13]} 28. Bxa7 {[%clk 0:03:03]}  Kf7 {[%clk 0:00:13]} 29. Kg2 {[%clk 0:03:03]}  Kg6 {[%clk 0:00:13]} 30. Be3 {[%clk 0:03:03]}  Kf5 {[%clk 0:00:13]} 31. f3 {[%clk 0:01:47]}  e5 {[%clk 0:00:16]} 32. h4 {[%clk 0:01:47]}  e4 {[%clk 0:00:16]} 33. Bd4 {[%clk 0:00:46]}  exf3+ {[%clk 0:00:16]} 34. Kxf3 {[%clk 0:00:46]}  Be7 {[%clk 0:00:16]} 35. Be3 {[%clk 0:00:46]}  Bd8 {[%clk 0:00:16]} 36. Bc5 {[%clk 0:00:46]}  Bxg5 {[%clk 0:00:16]} 37. hxg5 {[%clk 0:00:46]}  Kxg5 {[%clk 0:00:16]} 1/2-1/2


[Site "http://www.Chess.com"]